{"text_format":"1","workbook":"xlsx","n_sheets":3,"sheets":["Вопросы","Результат","Лист3"],"not_rendered":{"charts":1,"images":1,"macros":1,"external_links":0,"defined_names":1,"comments":0,"pivot_tables":0},"unopened":[],"bounds":{"document_bytes":16777216,"sheet_cells":100000,"rows_first":2000,"rows_last":500,"rows_between":2000,"halvings":0,"cell_chars":16384,"cell_head_chars":4096},"cells_cut":0,"cells_raw":0,"read":"whole","date_system":"1900"}

{"sheet":"Вопросы","index":0,"n_rows":17,"n_cols":13,"rows_kept":17,"cut":false,"hidden":false,"merged":[[0,0,0,1]]}
["Тест по теме \"Рельеф\""]
[]
[null,"Фамилия"]
[null,"Класс"]
[]
["№","Вопрос","Ответ"]
[1,{"$f":"H7","v":"Устойчивые участки земной коры называются"},null,null,null,null,{"$f":"IF(C7=M7,1,0)","v":0},{"$f":"Лист3!B1","v":"Устойчивые участки земной коры называются"},{"$f":"Лист3!C2","v":"складчатые области"},{"$f":"Лист3!C3","v":"платформы"},{"$f":"Лист3!C4","v":"щиты"},{"$f":"Лист3!C5","v":"траппы"},{"$f":"Лист3!D3","v":"платформы"}]
[2,{"$f":"H8","v":"Равнины расположены на:"},null,null,null,null,{"$f":"IF(C8=M8,1,0)","v":0},{"$f":"Лист3!B6","v":"Равнины расположены на:"},{"$f":"Лист3!C7","v":"границах литосферных плит"},{"$f":"Лист3!C8","v":"в складчатых областях"},{"$f":"Лист3!C9","v":"платформах"},{"$f":"Лист3!C10","v":"щитах"},{"$f":"Лист3!D8","v":"платформах"}]
[3,"Горы расположены на:",null,null,null,null,0,{"$f":"Лист3!B11","v":"Горы расположены на:"},{"$f":"Лист3!C12","v":"платформах"},{"$f":"Лист3!C13","v":"плитах"},{"$f":"Лист3!C14","v":"в складчатых областях"},{"$f":"Лист3!C15","v":"щитах"},{"$f":"Лист3!D13","v":"в складчатых областях"}]
[4,"В кайнозойскую складчатость поднялись хребты",null,null,null,null,0,{"$f":"Лист3!B16","v":"В кайнозойскую складчатость поднялись хребты"},{"$f":"Лист3!C17","v":"Алтая"},{"$f":"Лист3!C18","v":"Кавказа"},{"$f":"Лист3!C19","v":"Урала"},{"$f":"Лист3!C20","v":"Сихотэ-Алиня"},{"$f":"Лист3!D18","v":"Кавказа"}]
[5,"К формам рельефа ледникового происхождения относятся:",null,null,null,null,0,{"$f":"Лист3!B21","v":"К формам рельефа ледникового происхождения относятся:"},{"$f":"Лист3!C22","v":"барханы, дюны"},{"$f":"Лист3!C23","v":"овраги, балки"},{"$f":"Лист3!C24","v":"озы, камы, барханы"},{"$f":"Лист3!C25","v":"морены, бараньи лбы, озы"},{"$f":"Лист3!D23","v":"морены, бараньи лбы, озы"}]
[6,"Самая древняя геологическая эра называется",null,null,null,null,0,{"$f":"Лист3!B26","v":"Самая древняя геологическая эра называется"},{"$f":"Лист3!C27","v":"мезозойская"},{"$f":"Лист3!C28","v":"кайнозойская"},{"$f":"Лист3!C29","v":"архейская"},{"$f":"Лист3!C30","v":"протерозойская"},{"$f":"Лист3!D28","v":"архейская"}]
[7,"Выберите верное утверждение",null,null,null,null,0,{"$f":"Лист3!B31","v":"Выберите верное утверждение"},{"$f":"Лист3!C32","v":"эоловые процессы создают морены"},{"$f":"Лист3!C33","v":"ледниковые процессы создают траппы"},{"$f":"Лист3!C34","v":"основная часть гор расположена на западе и севере России"},{"$f":"Лист3!C35","v":"крупные равнины расположены на платформах"},{"$f":"Лист3!D33","v":"крупные равнины расположены на платформах"}]
[8,"Рыхлые валунно-глинистые отложения - это:",null,null,null,null,0,{"$f":"Лист3!B36","v":"Рыхлые валунно-глинистые отложения - это:"},{"$f":"Лист3!C37","v":"озы"},{"$f":"Лист3!C38","v":"морена"},{"$f":"Лист3!C39","v":"камы"},{"$f":"Лист3!C40","v":"зандры"},{"$f":"Лист3!D38","v":"морена"}]
[9,"Поверхность России понижается к ",null,null,null,null,0,{"$f":"Лист3!B41","v":"Поверхность России понижается к "},{"$f":"Лист3!C42","v":"западу"},{"$f":"Лист3!C43","v":"югу"},{"$f":"Лист3!C44","v":"северу"},{"$f":"Лист3!C45","v":"востоку"},{"$f":"Лист3!D43","v":"северу"}]
[10,"Высшая точка России:",null,null,null,null,0,{"$f":"Лист3!B46","v":"Высшая точка России:"},{"$f":"Лист3!C47","v":"Ключевская Сопка"},{"$f":"Лист3!C48","v":"Белуха"},{"$f":"Лист3!C49","v":"Казбек"},{"$f":"Лист3!C50","v":"Эльбрус"},{"$f":"Лист3!D48","v":"Эльбрус"}]
[null,null,null,null,null,null,{"$f":"SUM(G7:G16)","v":0},{"$f":"10-G17","v":10}]

{"sheet":"Результат","index":1,"n_rows":17,"n_cols":5,"rows_kept":17,"cut":false,"hidden":false,"merged":[[2,0,2,1],[3,0,3,1],[0,0,0,1],[1,0,1,1]]}
["Результаты теста"]
[{"$f":"Вопросы!C3&\" класс  \"&Вопросы!C4","v":" класс  "},null,{"$f":"COUNTIF(Вопросы!C7:C16,\"\")","v":10}]
[{"$f":"\"Правильные ответы: \"&D3","v":"Правильные ответы: 0"},null,"Правильно",{"$f":"IF(C2<>0,0,Вопросы!G17)","v":0}]
[{"$f":"\"Допущенные ошибки: \"&D4","v":"Допущенные ошибки: 0"},null,"Ошибочно",{"$f":"IF(C2<>0,0,Вопросы!H17)","v":0}]
["№","Вопрос","Ваш \nответ","Правильный \nответ"]
[1,{"$f":"Вопросы!B7","v":"Устойчивые участки земной коры называются"},{"$f":"IF(C2<>0,\" \",Вопросы!C7)","v":" "},{"$f":"IF(C2<>0,\"\",IF(Вопросы!G7<>1,Лист3!D3,\"\"))","v":""},{"$f":"Вопросы!M7","v":"платформы"}]
[2,{"$f":"Вопросы!B8","v":"Равнины расположены на:"},{"$f":"IF(C2<>0,\" \",Вопросы!C8)","v":" "},{"$f":"IF(C2<>0,\"\",IF(Вопросы!G8<>1,Лист3!D8,\"\"))","v":""},{"$f":"Вопросы!M8","v":"платформах"}]
[3,{"$f":"Вопросы!B9","v":"Горы расположены на:"},{"$f":"IF(C2<>0,\" \",Вопросы!C9)","v":" "},{"$f":"IF(C2<>0,\"\",IF(Вопросы!G9<>1,Лист3!D13,\"\"))","v":""},{"$f":"Вопросы!M9","v":"в складчатых областях"}]
[4,{"$f":"Вопросы!B10","v":"В кайнозойскую складчатость поднялись хребты"},{"$f":"IF(C2<>0,\" \",Вопросы!C10)","v":" "},{"$f":"IF(C2<>0,\"\",IF(Вопросы!G10<>1,Лист3!D18,\"\"))","v":""},{"$f":"Вопросы!M10","v":"Кавказа"}]
[5,{"$f":"Вопросы!B11","v":"К формам рельефа ледникового происхождения относятся:"},{"$f":"IF(C2<>0,\" \",Вопросы!C11)","v":" "},{"$f":"IF(C2<>0,\"\",IF(Вопросы!G11<>1,Лист3!D23,\"\"))","v":""},{"$f":"Вопросы!M11","v":"морены, бараньи лбы, озы"}]
[6,{"$f":"Вопросы!B12","v":"Самая древняя геологическая эра называется"},{"$f":"IF(C2<>0,\" \",Вопросы!C12)","v":" "},{"$f":"IF(C2<>0,\"\",IF(Вопросы!G12<>1,Лист3!D28,\"\"))","v":""},{"$f":"Вопросы!M12","v":"архейская"}]
[7,{"$f":"Вопросы!B13","v":"Выберите верное утверждение"},{"$f":"IF(C2<>0,\" \",Вопросы!C13)","v":" "},{"$f":"IF(C2<>0,\"\",IF(Вопросы!G13<>1,Лист3!D33,\"\"))","v":""},{"$f":"Вопросы!M13","v":"крупные равнины расположены на платформах"}]
[8,{"$f":"Вопросы!B14","v":"Рыхлые валунно-глинистые отложения - это:"},{"$f":"IF(C2<>0,\" \",Вопросы!C14)","v":" "},{"$f":"IF(C2<>0,\"\",IF(Вопросы!G14<>1,Лист3!D38,\"\"))","v":""},{"$f":"Вопросы!M14","v":"морена"}]
[9,{"$f":"Вопросы!B15","v":"Поверхность России понижается к "},{"$f":"IF(C2<>0,\" \",Вопросы!C15)","v":" "},{"$f":"IF(C2<>0,\"\",IF(Вопросы!G15<>1,Лист3!D43,\"\"))","v":""},{"$f":"Вопросы!M15","v":"северу"}]
[10,{"$f":"Вопросы!B16","v":"Высшая точка России:"},{"$f":"IF(C2<>0,\" \",Вопросы!C16)","v":" "},{"$f":"IF(C2<>0,\"\",IF(Вопросы!G16<>1,Лист3!D48,\"\"))","v":""},{"$f":"Вопросы!M16","v":"Эльбрус"}]
[null,{"$f":"IF(C2<>0,\"Вы ответили не на все вопросы!!! Осталось \"&C2&\" из 10\",\"\")","v":"Вы ответили не на все вопросы!!! Осталось 10 из 10"}]
[null,null,null,{"$f":"IF(C2<>0,\"\",IF(D3>=10,5,IF(D3>=8,4,IF(D3>=6,3,2))))","v":""}]

{"sheet":"Лист3","index":2,"n_rows":50,"n_cols":4,"rows_kept":50,"cut":false,"hidden":true,"merged":[]}
[1,"Устойчивые участки земной коры называются"]
[null,null,"складчатые области",{"$f":"MATCH(1,B2:B5,0)","v":2}]
[null,1,"платформы",{"$f":"INDEX(C2:C5,D2)","v":"платформы"}]
[null,null,"щиты"]
[null,null,"траппы"]
[2,"Равнины расположены на:"]
[null,null,"границах литосферных плит",{"$f":"MATCH(1,B7:B10,0)","v":3}]
[null,null,"в складчатых областях",{"$f":"INDEX(C7:C10,D7)","v":"платформах"}]
[null,1,"платформах"]
[null,null,"щитах"]
[3,"Горы расположены на:"]
[null,null,"платформах",{"$f":"MATCH(1,B12:B15,0)","v":3}]
[null,null,"плитах",{"$f":"INDEX(C12:C15,D12)","v":"в складчатых областях"}]
[null,1,"в складчатых областях"]
[null,null,"щитах"]
[4,"В кайнозойскую складчатость поднялись хребты"]
[null,null,"Алтая",{"$f":"MATCH(1,B17:B20,0)","v":2}]
[null,1,"Кавказа",{"$f":"INDEX(C17:C20,D17)","v":"Кавказа"}]
[null,null,"Урала"]
[null,null,"Сихотэ-Алиня"]
[5,"К формам рельефа ледникового происхождения относятся:"]
[null,null,"барханы, дюны",{"$f":"MATCH(1,B22:B25,0)","v":4}]
[null,null,"овраги, балки",{"$f":"INDEX(C22:C25,D22)","v":"морены, бараньи лбы, озы"}]
[null,null,"озы, камы, барханы"]
[null,1,"морены, бараньи лбы, озы"]
[6,"Самая древняя геологическая эра называется"]
[null,null,"мезозойская",{"$f":"MATCH(1,B27:B30,0)","v":3}]
[null,null,"кайнозойская",{"$f":"INDEX(C27:C30,D27)","v":"архейская"}]
[null,1,"архейская"]
[null,null,"протерозойская"]
[7,"Выберите верное утверждение"]
[null,null,"эоловые процессы создают морены",{"$f":"MATCH(1,B32:B35,0)","v":4}]
[null,null,"ледниковые процессы создают траппы",{"$f":"INDEX(C32:C35,D32)","v":"крупные равнины расположены на платформах"}]
[null,null,"основная часть гор расположена на западе и севере России"]
[null,1,"крупные равнины расположены на платформах"]
[8,"Рыхлые валунно-глинистые отложения - это:"]
[null,null,"озы",{"$f":"MATCH(1,B37:B40,0)","v":2}]
[null,1,"морена",{"$f":"INDEX(C37:C40,D37)","v":"морена"}]
[null,null,"камы"]
[null,null,"зандры"]
[9,"Поверхность России понижается к "]
[null,null,"западу",{"$f":"MATCH(1,B42:B45,0)","v":3}]
[null,null,"югу",{"$f":"INDEX(C42:C45,D42)","v":"северу"}]
[null,1,"северу"]
[null,null,"востоку"]
[10,"Высшая точка России:"]
[null,null,"Ключевская Сопка",{"$f":"MATCH(1,B47:B50,0)","v":4}]
[null,null,"Белуха",{"$f":"INDEX(C47:C50,D47)","v":"Эльбрус"}]
[null,null,"Казбек"]
[null,1,"Эльбрус"]